Workbook

Sheet MDDS Form
A1: Material Data Declaration Sheet
A2: Date
A3: Product Line
A4: WD Part Number
A5: Supplier Part Number
A6: Product Description
A7: Product Revision
A8: Product Total Weight (g)
A9: Contact Information | B9: Company
B10: WD Supplier Code
B11: Contact Name
B12: Address
B14: Email
B15: Phone Number
A16: Homogeneous Subcomponent | B16: Homogeneous Subcomponent Weight (g) | C16: Substances | D16: Substances - Other Names | E16: CAS Number | F16: Substance Weight (g) | G16: Homogeneous PPM Level | H16: EU RoHS Exemption | I16: Purpose and Location | J16: Is this substance a process chemical
E38: Total Weight (g): | F38: 0

Sheet Lab Test Data
A1: F0 | B1: F1 | C1: F2 | D1: F3 | E1: F4 | F1: F5 | G1: F6 | H1: F7 | I1: F8 | J1: F9 | K1: F10 | L1: F11 | M1: F12 | N1: F13 | O1: F14 | P1: F15 | Q1: F16 | R1: F17 | S1: F18 | T1: F19 | U1: F20 | V1: F21 | W1: F22 | X1: F23 | Y1: F24 | Z1: F25 | AA1: F26 | AB1: F27 | AC1: F28 | AD1: F29 | AE1: F30 | AF1: F31 | AG1: F32 | AH1: F33 | AI1: F34 | AJ1: F35 | AK1: F36 | AL1: F37 | AM1: F38 | AN1: F39 | AO1: F40 | AP1: F41 | AQ1: F42 | AR1: F43 | AS1: F44 | AT1: F45 | AU1: F46 | AV1: F47 | AW1: F48 | AX1: F49 | AY1: F50 | AZ1: F51 | BA1: F52 | BB1: F53 | BC1: F54 | BD1: F55 | BE1: F56 | BF1: F57 | BG1: F58 | BH1: F59 | BI1: F60 | BJ1: F61 | BK1: F62 | BL1: F63 | BM1: F64 | BN1: F65 | BO1: F66 | BP1: F67 | BQ1: F68 | BR1: F69 | BS1: F70 | BT1: F71 | BU1: F72
B5: WD Part Number
B6: Supplier Part Number
B7: Supplier Name
B9: Attach Lab test report (in zip file) in Cell C9
B12: Components | C12: Subpart | D12: Homogenous materials | E12: Lab test reports | F12: Test Results
F13: Element | G13: Lead | H13: Mercury | I13: Cadmium | J13: Chromium(VI) | K13: PBBs | L13: PBDEs | M13: Antimony | N13: halogen - bromine | O13: halogen - chlorine | P13: Bis(2-ethylhexyl) phthalate (DEHP) | Q13: Butyl benzyl phthalate (BBP) | R13: Dibutyl phthalate (DBP) | S13: Diisobutyl phthalate (DIBP)
F14: Result
F15: Test Date MM/DD/YYYY
F16: RoHS exemption

Sheet EDoC
W2: Category | Y2: Status | AA2: Status
AA3: YES
L4: EDoC | W4: Assembly | Y4: YES | AA4: NO
D5: Environmental Declaration of Conformity | W5: Part | Y5: NO | AA5: NA
W6: Material | Y6: NA
Y7: Silver
Y8: Gold
B9: 1 | D9: Scope
D10: This declaration form applies to all Materials, Parts, Products & Packaging supplied to WDC - WD//HGST/Sandisk hardware applications and is used to verify compliance to environmental requirements in 2096-001669 Rev AY & 01-01-WW-00-00002 Rev 19
D14: Environmental Compliance Declaration :
D15: By submitting this document, Supplier represents and warrants to Western Digital that all information in this document, including the “Full Material Disclosure” in the MDDS, is accurate and without omission.
B19: 2 | D19: Environmental Compliance | R19: YES/ NO
C20: 1 | D20: RoHS Compliance as per EU Directive 2011/65/EU or the latest
D21: Comment: | F21: =IF(R20="No","Non-Compliant, please explain in green field","") -> 
R22: YES/ NO
C23: 2 | D23: Does part contain any substance listed in the current REACH SVHC Candidate List?
D24: Comment: | F24: =IF(R23="Yes","Please list SVHC","") -> 
R25: YES/ NO
C26: 3 | D26: Compliance to Halogen-free - BFR/CFR/PVC; Br < 900 ppm, Cl < 900 ppm, Cl in the form of PVC < 900 ppm, Br + Cl < 1500 ppm
D28: Comment: | F28: =IF(R26="No","Non-Compliant, please explain in green field","") -> 
R29: YES/ NO
C30: 4 | D30: Red-Phosphorus Free : Red-P < 1000 ppm
D31: Comment: | F31: =IF(R30="No","Non-Compliant, please explain in green field","") -> 
R32: YES/ NO
C33: 5 | D33: Antimony TriOxide Free : Sb2O3 (CAS # 1309-64-4) < 700 ppm
D34: Comment: | F34: =IF(R33="No","Non-Compliant, please explain in green field","") -> 
R35: YES/ NO
C36: 6 | D36: Banned Substances Free for the prohibited substances listed in WDC - WD (2096-001669 Rev AY or 01-01-WW-00-00002 Rev 19)
D38: Comment: | F38: =IF(R36="No","Non-Compliant, please explain in green field","") -> 
R39: YES/ NO
C40: 7 | D40: Responsible Minerals - Gold, Tantalum, Tin, Tungsten and Cobalt present in the part/product/packaging
D41: Comment: | F41: =IF(R40="Yes","Enter in Green field, which 3TG and Co is/are contained in your part/product/packaging. Provide CMRT."," ") -> 
R42: YES/ NO
C43: 8 | D43: Nanomaterial Compliance as defined by 2011/696/EU :
D44: Nanomaterial is “a natural, incidental, or manufactured material that contains particles in an unbound state or as an aggregate or as an agglomerate and where, for 50 % or more of the particles in the number size distribution, one or more external dimensions is in the size range 1 nm-100 nm (nanometres)”.
D47: Comment: | F47: =IF(R43="No","Non-Compliant, please explain in green field","") -> 
R48: Broze/Silver/Gold/NA
C49: 9 | D49: Recycle Marking on Plastic Parts weighing > 25 g as per ISO 11469 "Plastics - Generic identification and marking of plastics products"
D51: Comment: | F51: =IF(R49="No","Non-Compliant, please explain in green field","") -> 
R52: YES/ NO/NA
C53: 10 | D53: Packaging Material Compliant to Packaging Directive 94/62/EC (This is for Packaging material suppliers)
D54: Comment: | F54: =IF(R53="No","Non-Compliant, please explain in green field","") -> 
R55: YES/ NO/NA
C56: 11 | D56: Packaging Material Compliant to California Packaging Recycling CalRecycle (This is for Packaging material suppliers)
D58: Comment: | F58: =IF(R56="No","Non-Compliant, please explain in green field","") -> 
R59: YES/ NO/NA
C60: 12 | D60: Does Part contain any substances listed in Controlled substances Table above threshold?
D61: Comment: | F61: =IF(R60="Yes","Please list substances","") -> 
R62: YES/ NO/NA
C63: 13 | D63: Are all reportable substances above listed threshold declared in MDDS?
D64: Comment: | F64: =IF(R63="No","Please declare them in MDDS or specify the reason of non-inclusion","") -> 
R65: YES/ NO/NA
C66: 14 | D66: Do you have any substance listed in MDDS form that is a process substance which is not present in final product? Included are solvents that are unlikely to be present in the finished product?
D67: Comment: | F67: =IF(R66="Yes","Please list all these substances in green field","") -> 
R68: YES/ NO/NA
C69: 15 | D69: No objection to sharing reports with WDC Customers
D70: Comment: | F70: =IF(R69="No","OBJECTION, please explain in green field","") -> 
R71: YES/ NO/NA
C72: 16 | D72: Does Part contain any substance listed in Cal Prop 65 list?
D73: Comment: | F73: =IF(R72="Yes","Please provide the substance name and comment if it requires a warning label","") -> 
C75: 17 | D75: Does Part contain any Persistent, Bioaccumulative, and Toxic (PBT) Chemicals under TSCA Section 6(h) | R75: YES/ NO/NA
D76: Comment:
C78: 18 | D78: Does Part contain any PFAS (per- and polyfluoroalkyl substances)? | R78: YES/ NO/NA
D79: Comment:

Sheet EXAMPLE - MDDS (1)
A1: Material Data Declaration Sheet
A2: Date | B2: 1/21/2019
A3: Product Line | B3: microSD
A4: WD Part Number | B4: 54-50-12345
A5: Supplier Part Number | B5: 1234567
A6: Product Description | B6: Substrate
A7: Product Revision | B7: Revision 1
A8: Product Total Weight (g) | B8: 0.1256 g
A9: Contact Information | B9: Company | C9: ABC Substrate Manufacturer
B10: WD Supplier Code | C10: 345678
B11: Contact Name | C11: Ming Chen
B12: Address | C12: 123 A Street, XYZ City, China
B14: Email | C14: mchen@abc.com
B15: Phone Number | C15: 86-21-12345678
A16: Homogenous Subcomponent | B16: Homogenous Subcomponent Weight (g) | C16: Substance | D16: Substance - Other Names | E16: CAS Number | F16: Substance Weight (g) | G16: Homogeneous PPM Level (Substance Weight/Homogeneous Subcomponent Weight*1000000) | H16: EU RoHS Exemption | I16: Purpose/Location
A18: Solder Mask | B18: 0.003544 | C18: Acrylic Resin | D18: PMMA | E18: N/A | F18: 5e-05 | G18: =F18*1000000/B18 -> 14108.35214 | I18: Solder Mask
C19: Phthalcyanine Blue, Organic Pigment | D19: N/A | E19: N/A | F19: 0.0014 | G19: =F19*1000000/B18 -> 395033.86
C20: Aromatic Carbonyl Compound | D20: N/A | E20: N/A | F20: 0.00025 | G20: =F20*1000000/B18 -> 70541.76072
C21: Amine Compound | D21: N/A | E21: N/A | F21: 5.4e-05 | G21: =F21*1000000/B18 -> 15237.02032
C22: Levelling Agents & Others | D22: N/A | E22: N/A | F22: 0.00025 | G22: =F22*1000000/B18 -> 70541.76072
C23: Dipropylene Glycol Monomethyl Ether | D23: N/A | E23: 34590-94-8 | F23: 7e-05 | G23: =F23*1000000/B18 -> 19751.693
C24: Acrylic Monomer | D24: N/A | E24: N/A | F24: 0.0004 | G24: =F24*1000000/B18 -> 112866.8172
C25: Epoxy Resin | D25: N/A | E25: 85954-11-6 | F25: 0.001 | G25: =F25*1000000/B18 -> 282167.0429
C26: Organic Filler | D26: N/A | E26: N/A | F26: 7e-05 | G26: =F26*1000000/B18 -> 19751.693
A27: Core Material | B27: 0.05 | C27: Bismaleimide | D27: N/A | E27: 105391-33-1 | F27: 0.005 | G27: =F27*1000000/B27 -> 100000 | I27: Core
C28: Triazine | D28: N/A | E28: 25722-66-1 | F28: 0.015 | G28: =F28*1000000/B27 -> 300000
C29: Epoxy Resin | D29: N/A | E29: 9003-36-5 | F29: 0.015 | G29: =F29*1000000/B27 -> 300000
C30: Inorganic filler | D30: N/A | E30: 24623-77-6 | F30: =B27*30% -> 0.015 | G30: =F30*1000000/B27 -> 300000
A31: Copper Plating | B31: 0.065843456 | C31: Copper | D31: Cu | E31: 7440-50-8 | F31: =B31 -> 0.065843456 | G31: =F31*1000000/B31 -> 1000000 | I31: Conductor
A32: Nickel Plating | B32: 0.00591114837 | C32: Nickel | D32: Ni | E32: 7440-02-0 | F32: =B32 -> 0.00591114837 | G32: =F32*1000000/B32 -> 1000000 | I32: Metal finish
A33: Soft Gold | B33: 9.3609825e-05 | C33: Gold | D33: Au | E33: 7440-57-5 | F33: =B33 -> 9.3609825e-05 | G33: =F33*1000000/B33 -> 1000000 | I33: Metal finish
A34: Hard Gold | B34: 0.00023741895 | C34: Gold | D34: Au | E34: 7440-57-5 | F34: =B34 -> 0.00023741895 | G34: =F34*1000000/B34 -> 1000000 | I34: Metal finish
E35: Total Weight (g):

Sheet EXAMPLE - MDDS (2)
A1: Material Data Declaration Sheet
A2: Date | B2: 1/21/2019
A3: Product Line | B3: SD cards
A4: WD Part Number | B4: 10-59-12345
A5: Supplier Part Number | B5: 1234567
A6: Product Description | B6: Tact Switch
A7: Product Revision | B7: Revision 9
A8: Product Total Weight (g) | B8: 0.019 g
A9: Contact Information | B9: Company | C9: ABC Manufacturer
B10: WD Supplier Code | C10: 345678
B11: Contact Name | C11: Ming Chen
B12: Address | C12: 123 A Street, XYZ City, China
B14: Email | C14: mchen@abc.com
B15: Phone Number | C15: 86-21-12345678
A16: Homogenous Subcomponent | B16: Homogenous Subcomponent Weight (g) | C16: Substance | D16: Substance - Other Names | E16: CAS Number | F16: Substance Weight (g) | G16: Homogeneous PPM Level (Substance Weight/Homogeneous Subcomponent Weight*1000000) | H16: EU RoHS Exemption | I16: Purpose/Location
A17: Metal contact | B17: 0.009 | C17: Chromium | E17: 7440-47-3 | F17: 0.00153 | G17: 170000
C18: Nickel | E18: 7440-02-0 | F18: 0.00063 | G18: 70000
C19: Iron | E19: 7439-89-6 | F19: 0.006759 | G19: 751000
C20: Silver | E20: 7440-22-4 | F20: 8.1e-05 | G20: 9000
A21: Housing | B21: 0.01 | C21: Glass Fiber | E21: 65997-17-3 | F21: 0.003 | G21: 300000
C22: Polyester Resin | E22: 68604-67-1 | F22: 0.007 | G22: 700000
E23: Total Weight (g): | F23: 0

Sheet Lookups
A1: RoHS Exemptions
A3: 1(a) - Mercury in single capped (compact) fluorescent lamps not exceeding (per burner): For general lighting purposes < 30 W: 5 mg
A4: 1(b) - Mercury in single capped (compact) fluorescent lamps not exceeding (per burner): For general lighting purposes ≥ 30 W and < 50 W: 5 mg
A5: 1(c) - Mercury in single capped (compact) fluorescent lamps not exceeding (per burner): For general lighting purposes ≥ 50 W and < 150 W: 5 mg
A6: 1(d) - Mercury in single capped (compact) fluorescent lamps not exceeding (per burner): For general lighting purposes ≥ 150 W: 15 mg
A7: 1(e) - Mercury in single capped (compact) fluorescent lamps not exceeding (per burner): For general lighting purposes with circular or square structural shape and tube diameter ≤ 17 mm
A8: 1(f) - Mercury in single capped (compact) fluorescent lamps not exceeding (per burner): For special purposes: 5 mg
A9: 1(g) - For general lighting purposes < 30 W with a lifetime equal or above 20 000 h: 3,5 mg
A10: 2(a)(1) - Mercury in double-capped linear fluorescent lamps for general lighting purposes not exceeding (per lamp): Tri-band phosphor with normal lifetime and a tube diameter < 9 mm (e.g. T2): 5 mg
A11: 2(a)(2) - Mercury in double-capped linear fluorescent lamps for general lighting purposes not exceeding (per lamp): Tri-band phosphor with normal lifetime and a tube diameter ≥ 9 mm and ≤ 17 mm (e.g. T5): 5 mg
A12: 2(a)(3) - Mercury in double-capped linear fluorescent lamps for general lighting purposes not exceeding (per lamp): Tri-band phosphor with normal lifetime and a tube diameter > 17 mm and ≤ 28 mm (e.g. T8): 5 mg
A13: 2(a)(4) - Mercury in double-capped linear fluorescent lamps for general lighting purposes not exceeding (per lamp): Tri-band phosphor with normal lifetime and a tube diameter > 28 mm (e.g. T12): 5 mg
A14: 2(a)(5) - Mercury in double-capped linear fluorescent lamps for general lighting purposes not exceeding (per lamp): Tri-band phosphor with long lifetime (≥ 25 000 h): 8 mg
A15: 2(b)(1) - Mercury in other fluorescent lamps not exceeding (per lamp): Linear halophosphate lamps with tube > 28 mm (e.g. T10 and T12): 10 mg
A16: 2(b)(2) - Mercury in other fluorescent lamps not exceeding (per lamp): Non-linear halophosphate lamps (all diameters): 15 mg
A17: 2(b)(3) - Mercury in other fluorescent lamps not exceeding (per lamp): Non-linear tri-band phosphor lamps with tube diameter > 17 mm (e.g. T9)
A18: 2(b)(4) - Mercury in other fluorescent lamps not exceeding (per lamp): Lamps for other general lighting and special purposes (e.g. induction lamps)
A19: 3(a) - Mercury in cold cathode fluorescent lamps and external electrode fluorescent lamps (CCFL and EEFL) for special purposes not exceeding (per lamp): Short length (≤ 500 mm)
A20: 3(b) - Mercury in cold cathode fluorescent lamps and external electrode fluorescent lamps (CCFL and EEFL) for special purposes not exceeding (per lamp): Medium length (> 500 mm and ≤ 1 500 mm)
A21: 3(c) - Mercury in cold cathode fluorescent lamps and external electrode fluorescent lamps (CCFL and EEFL) for special purposes not exceeding (per lamp): Long length (> 1 500 mm)
A22: 4(a) - Mercury in other low pressure discharge lamps (per lamp)
A23: 4(b)-I - Mercury in High Pressure Sodium (vapour) lamps for general lighting purposes not exceeding (per burner) in lamps with improved colour rendering index Ra > 60: P ≤ 155 W
A24: 4(b)-II - Mercury in High Pressure Sodium (vapour) lamps for general lighting purposes not exceeding (per burner) in lamps with improved colour rendering index Ra > 60: 155 W < P ≤ 405 W
A25: 4(b)-III - Mercury in High Pressure Sodium (vapour) lamps for general lighting purposes not exceeding (per burner) in lamps with improved colour rendering index Ra > 60: P > 405 W
A26: 4(c)-I - Mercury in other High Pressure Sodium (vapour) lamps for general lighting purposes not exceeding (per burner): P ≤ 155 W
A27: 4(c)-II - Mercury in other High Pressure Sodium (vapour) lamps for general lighting purposes not exceeding (per burner): 155 W < P ≤ 405 W
A28: 4(c)-III - Mercury in other High Pressure Sodium (vapour) lamps for general lighting purposes not exceeding (per burner): P > 405 W
A29: 4(d) - Mercury in High Pressure Mercury (vapour) lamps (HPMV)
A30: 4(e) - Mercury in metal halide lamps (MH)
A31: 4(f) - Mercury in other discharge lamps for special purposes not specifically mentioned in this Annex
A32: 4(g) - Mercury in hand crafted luminous discharge tubes used for signs, decorative or architectural and specialist lighting and light-artwork, where the mercury content shall be limited as follows: (a) 20 mg per electrode pair + 0,3 mg per tube length in cm, but not more than 80 mg, for outdoor applications and indoor applications exposed to temperatures below 20 °C;(b) 15 mg per electrode pair + 0,24 mg per tube length in cm, but not more than 80 mg, for all other indoor applications.
A33: 5(a) - Lead in glass of cathode ray tubes
A34: 5(b) - Lead in glass of fluorescent tubes not exceeding 0,2 % by weight
A35: 6(a) - Lead as an alloying element in steel for machining purposes and in galvanized steel containing up to 0,35 % lead by weight
A36: 6(b) - Lead as an alloying element in aluminium containing up to 0,4 % lead by weight
A37: 6(c) - Copper alloy containing up to 4 % lead by weight
A38: 7(a) - Lead in high melting temperature type solders (i.e. lead- based alloys containing 85 % by weight or more lead)
A39: 7(b) - Lead in solders for servers, storage and storage array systems, network infrastructure equipment for switching, signalling, transmission, and network management for telecommunications
A40: 7(c)-I - Electrical and electronic components containing lead in a glass or ceramic other than dielectric ceramic in capacitors, e.g. piezoelectronic devices, or in a glass or ceramic matrix compound
A41: 7(c)-II - Lead in dielectric ceramic in capacitors for a rated voltage of 125 V AC or 250 V DC or higher
A42: 7(c)-III - Lead in dielectric ceramic in capacitors for a rated voltage of less than 125 V AC or 250 V DC
A43: 7(c)-IV Lead in PZT based dielectric ceramic materials for capacitors being part of integrated circuits or discrete semiconductors
A44: 8(a) - Cadmium and its compounds in one shot pellet type thermal cut-offs
A45: 8(b) - Cadmium and its compounds in electrical contacts
A46: 9 - Hexavalent chromium as an anticorrosion agent of the carbon steel cooling system in absorption refrigerators up to 0,75 % by weight in the cooling solution
A47: 9(b) - Lead in bearing shells and bushes for refrigerant-containing compressors for heating, ventilation, air conditioning and refrigeration (HVACR) applications
A48: 11(a) - Lead used in C-press compliant pin connector systems for spare parts for EEE placed on the market before 24 September 2010
A49: 11(b) - Lead used in other than C-press compliant pin connector systems
A50: 12 - Lead as a coating material for the thermal conduction module C-ring for spare parts for EEE placed on the market before 24 September 2010
A51: 14 - Lead in solders consisting of more than two elements for the connection between the pins and the package of microprocessors with a lead content of more than 80 % and less than 85 % by weight
A52: 13(a) - Lead in white glasses used for optical applications
A53: 13(b) - Cadmium and lead in filter glasses and glasses used for reflectance standards
A54: 15 - Lead in solders to complete a viable electrical connection between semiconductor die and carrier within integrated circuit flip chip packages
A55: 16 - Lead in linear incandescent lamps with silicate coated tubes
A56: 17 - Lead halide as radiant agent in high intensity discharge (HID) lamps used for professional reprography applications
A57: 18(a) - Lead as activator in the fluorescent powder (1 % lead by weight or less) of discharge lamps when used as speciality lamps for diazoprinting reprography, lithography, insect traps, photochemical and curing processes containing phosphors such as SMS ((Sr,Ba) 2 MgSi 2 O 7 :Pb)
A58: 18(b) - Lead as activator in the fluorescent powder (1 % lead by weight or less) of discharge lamps when used as sun tanning lamps containing phosphors such as BSP (BaSi 2 O 5 :Pb)
A59: 19 - Lead with PbBiSn-Hg and PbInSn-Hg in specific compositions as main amalgam and with PbSn-Hg as auxiliary amalgam in very compact energy saving lamps (ESL)
A60: 20 - Lead oxide in glass used for bonding front and rear substrates of flat fluorescent lamps used for Liquid Crystal Displays (LCDs)
A61: 21 - Lead and cadmium in printing inks for the application of enamels on glasses, such as borosilicate and soda lime glasses
A62: 23 - Lead in finishes of fine pitch components other than connectors with a pitch of 0,65 mm and less used in spare parts for EEE placed on the market before 24 September 2010
A63: 24 - Lead in solders for the soldering to machined through hole discoidal and planar array ceramic multilayer capacitors
A64: 25 - Lead oxide in surface conduction electron emitter displays (SED) used in structural elements, notably in the seal frit and frit ring
A65: 26 - Lead oxide in the glass envelope of black light blue lamps
A66: 27 - Lead alloys as solder for transducers used in high-powered (designated to operate for several hours at acoustic power levels of 125 dB SPL and above) loudspeakers
A67: 29 - Lead bound in crystal glass as defined in Annex I (Categories 1, 2, 3 and 4) of Council Directive 69/493/EEC
A68: 30 - Cadmium alloys as electrical/mechanical solder joints to electrical conductors located directly on the voice coil in transducers used in high-powered loudspeakers with sound pressure levels of 100 dB (A) and more
A69: 31 - Lead in soldering materials in mercury free flat fluorescent lamps (which e.g. are used for liquid crystal displays, design or industrial lighting)
A70: 32 - Lead oxide in seal frit used for making window assemblies for Argon and Krypton laser tubes
A71: 33 - Lead in solders for the soldering of thin copper wires of 100 μm diameter and less in power transformers
A72: 34 - Lead in cermet-based trimmer potentiometer elements
A73: 36 - Mercury used as a cathode sputtering inhibitor in DC plasma displays with a content up to 30 mg per display
A74: 37 - Lead in the plating layer of high voltage diodes on the basis of a zinc borate glass body
A75: 38 - Cadmium and cadmium oxide in thick film pastes used on aluminium bonded beryllium oxide
A76: 39 - Cadmium in colour converting II-VI LEDs (< 10 μg Cd per mm 2 of light-emitting area) for use in solid state illumination or display systems
A77: 40 - Cadmium in photoresistors for analogue optocouplers applied in professional audio equipment
A78: 41- Lead in solders and termination finishes of electrical and electronic components and finishes of printed circuit boards used in ignition modules and other electrical and electronic engine control systems, which for technical reasons must be mounted directly on or in the crankcase or cylinder of hand-held combustion engines (classes SH:1, SH:2, SH:3 of Directive 97/68/EC of the European Parliament and of the Council(*)
A82: Yes
A83: No

Sheet Definitions
A1: Homogeneous Component/SubComponent: A material that cannot be mechanically disjointed into different materials. The term homogeneous is understood as ”of uniform composition throughout”, e.g., individual types of plastics, ceramics, glass, metal, alloys, paper, board, resins and coatings. | B1: www.dti.gov.uk/sustainability/WEEE/RoHS_Regs_Draft_guidance.pdf
A2: Example 1: Insulation and metal conductors would be considered two homogeneous materials in an electric cable.
A3: Example 2: A semi-conductor package would contain many homogeneous materials, which include plastic molding material, tin-electroplating coatings on the lead frame, the lead frame alloy, and the gold bonding wires.
A5: Substance: The chemical elements of the Homogenous Component/SubComponent
A7: CAS Number: Chemical Abstracts Service Registry Number, which is a unique identifier for the chemical substance. It does not identify the chemical manufacturer or concentration. (For more information see http://www.cas.org/.)
A9: Homogeneous PPM (parts per millon) Level: Substance Weight/Component or Subcomponent Weight*1000000
A11: Purpose: For what purpose is the substance used? (Examples are solderability or electrical interconnect, etc.)
A13: Location: Where is the substance used? (Examples are solder paste or package lead plating, etc.)
